[Event "Slovakian-ch Youth 2022"]
[Site "Lubovna"]
[Date "2022.05.23"]
[Round "4.27"]
[White "Durovka, Marek"]
[Black "Meszaros, Casey Ryan"]
[Result "1-0"]
[ECO "D46"]
[WhiteElo "1827"]
[BlackElo "1757"]
[Annotator "NA COMBH"]
[PlyCount "109"]
[EventDate "2022.05.22"]
[EventCountry "SVK"]
[SourceTitle "playchess.com"]
[Source "ChessBase"]
[SourceQuality "1"]
[TimeControl "40/5400+30:1800+30"]

1. c4 {[%emt 0:00:24]} e6 {[%emt 0:00:40]} 2. Nc3 {[%emt 0:00:32]} d5 {[%emt 0:00:48]} 3. d4 {[%emt 0:01:25]} Nf6 {[%emt 0:00:31]} 4. Nf3 {[%emt 0:02:22]} c6 {[%emt 0:01:41]} 5. e3 {[%emt 0:04:28]} Be7 {[%emt 0:02:52]} 6. Bd3 {[%emt 0:01:19]} O-O {[%emt 0:01:44]} 7. O-O {[%emt 0:00:18]} b6 {[%emt 0:03:16]} 8. b3 {[%emt 0:02:42]} Bb7 {[%emt 0:00:25]} 9. Bb2 {[%emt 0:00:28]} c5 {[%emt 0:07:56]} 10. cxd5 {[%emt 0:08:50]} exd5 {[%emt 0:09:30]} 11. Rc1 {[%emt 0:11:57]} Nbd7 {[%emt 0:05:22]} 12. Qe2 {[%emt 0:04:04]} Re8 {[%emt 0:10:09]} 13. Rfd1 {[%emt 0:08:53]} cxd4 {[%emt 0:10:02]} 14. Nxd4 {[%emt 0:04:51]} Bc5 {[%emt 0:05:08]} 15. Na4 {[%emt 0:10:07]} Bxd4 {[%emt 0:10:44]} 16. Bxd4 {[%emt 0:00:19]} Rc8 {[%emt 0:05:52]} 17. Qb2 {[%emt 0:04:18]} g6 {[%emt 0:16:57]} 18. Nc3 {[%emt 0:11:41]} Bc6 {[%emt 0:03:49]} 19. Nb5 {[%emt 0:03:52]} Bxb5 {[%emt 0:01:26]} 20. Bxb5 {[%emt 0:00:14]} Rxc1 {[%emt 0:00:44]} 21. Rxc1 {[%emt 0:00:17]} Ne4 {[%emt 0:00:25]} 22. Bc6 {[%emt 0:01:31]} Re7 {[%emt 0:00:54]} 23. Bxd5 {[%emt 0:01:30]} Ndc5 {[%emt 0:00:33]} 24. Bxe4 {[%emt 0:01:12]} Nxe4 {[%emt 0:00:23]} 25. f3 {[%emt 0:02:47]} Nc5 {[%emt 0:00:20]} 26. Bf6 {[%emt 0:00:46]} Qd3 {[%emt 0:00:17]} 27. Bxe7 {[%emt 0:02:35]} Qxe3+ {[%emt 0:00:01]} 28. Kh1 {[%emt 0:00:18]} Qxe7 {[%emt 0:00:07]} 29. b4 {[%emt 0:01:15]} Ne6 {[%emt 0:00:16]} 30. Qd2 {[%emt 0:03:37]} Kg7 {[%emt 0:01:02]} 31. a3 {[%emt 0:02:52]} Qf6 {[%emt 0:00:47]} 32. Qc3 {[%emt 0:00:29]} Qxc3 {[%emt 0:00:23]} 33. Rxc3 {[%emt 0:00:30]} Kf6 {[%emt 0:00:07]} 34. Rd3 {[%emt 0:01:55]} Ke7 {[%emt 0:00:41]} 35. Kg1 {[%emt 0:00:24]} Nc7 {[%emt 0:00:18]} 36. Kf2 {[%emt 0:00:26]} Ne6 {[%emt 0:00:22]} 37. Ke3 {[%emt 0:00:13]} f5 {[%emt 0:00:22]} 38. g3 {[%emt 0:01:42]} Ke8 {[%emt 0:00:34]} 39. Kd2 {[%emt 0:00:24]} Ke7 {[%emt 0:00:06]} 40. Kc3 {[%emt 0:00:06]} b5 {[%emt 0:00:18]} 41. f4 {[%emt 0:31:41]} a6 {[%emt 0:30:06]} 42. Kb3 {[%emt 0:00:41]} Nc7 {[%emt 0:02:02]} 43. a4 {[%emt 0:00:00]} h6 {[%emt 0:00:00]} 44. axb5 {[%emt 0:00:00]} axb5 {[%emt 0:00:00]} 45. Kc3 {[%emt 0:00:00]} Ke6 {[%emt 0:00:00]} 46. Rd8 {[%emt 0:00:00]} Nd5+ {[%emt 0:00:00]} 47. Kb3 {[%emt 0:00:00]} g5 {[%emt 0:00:00]} 48. fxg5 {[%emt 0:00:00]} hxg5 {[%emt 0:00:00]} 49. Rg8 {[%emt 0:00:00]} Kf6 {[%emt 0:00:00]} 50. Rb8 {[%emt 0:00:00]} f4 {[%emt 0:00:00]} 51. gxf4 {[%emt 0:00:00]} gxf4 {[%emt 0:00:00]} 52. Rxb5 {[%emt 0:00:00]} Ke5 {[%emt 0:00:00]} 53. Kc4 {[%emt 0:00:00]} f3 {[%emt 0:00:00]} 54. Rxd5+ {[%emt 0:00:00]} Ke4 {[%emt 0:00:00]} 55. Rd8 {[%emt 0:00:00]} 1-0

[Event "Slovakian-ch Youth 2022"]
[Site "Lubovna"]
[Date "2022.05.23"]
[Round "4.28"]
[White "Ropovik, Samuel"]
[Black "Dolnik, Michal"]
[Result "1/2-1/2"]
[ECO "C46"]
[WhiteElo "1453"]
[BlackElo "1548"]
[Annotator "NA COMBH"]
[PlyCount "113"]
[EventDate "2022.05.22"]
[EventCountry "SVK"]
[SourceTitle "playchess.com"]
[Source "ChessBase"]
[SourceQuality "1"]
[TimeControl "40/5400+30:1800+30"]

1. e4 {[%emt 0:00:09]} e5 {[%emt 0:00:12]} 2. Nf3 {[%emt 0:00:31]} Nc6 {[%emt 0:00:08]} 3. Nc3 {[%emt 0:00:23]} Bc5 {[%emt 0:00:16]} 4. Nxe5 {[%emt 0:02:11]} Nxe5 {[%emt 0:00:16]} 5. d4 {[%emt 0:00:20]} Bd6 {[%emt 0:00:19]} 6. dxe5 {[%emt 0:00:08]} Bxe5 {[%emt 0:00:08]} 7. Qd3 {[%emt 0:00:38]} Bxc3+ {[%emt 0:00:24]} 8. Qxc3 {[%emt 0:00:58]} Nf6 {[%emt 0:00:53]} 9. Bg5 {[%emt 0:11:53]} O-O {[%emt 0:01:57]} 10. Bxf6 {[%emt 0:04:11]} Qxf6 {[%emt 0:00:15]} 11. Qxf6 {[%emt 0:00:38]} gxf6 {[%emt 0:02:17]} 12. O-O-O {[%emt 0:00:32]} d6 {[%emt 0:00:11]} 13. Bd3 {[%emt 0:03:07]} c6 {[%emt 0:00:47]} 14. f4 {[%emt 0:16:46]} b5 {[%emt 0:01:05]} 15. c4 {[%emt 0:03:21]} bxc4 {[%emt 0:05:57]} 16. Bxc4 {[%emt 0:00:29]} Rd8 {[%emt 0:00:41]} 17. Rd4 {[%emt 0:09:30]} c5 {[%emt 0:00:42]} 18. Rd2 {[%emt 0:02:01]} Bb7 {[%emt 0:01:04]} 19. Bd5 {[%emt 0:02:12]} Rab8 {[%emt 0:00:27]} 20. Rhd1 {[%emt 0:08:49]} Bxd5 {[%emt 0:02:53]} 21. Rxd5 {[%emt 0:00:33]} Rb6 {[%emt 0:00:10]} 22. Rxc5 {[%emt 0:10:39]} Rdb8 {[%emt 0:00:12]} 23. Rc2 {[%emt 0:00:34]} Rb4 {[%emt 0:00:10]} 24. Rxd6 {[%emt 0:06:23]} Rxe4 {[%emt 0:00:07]} 25. Rxf6 {[%emt 0:03:18]} Rbe8 {[%emt 0:00:18]} 26. Ra6 {[%emt 0:07:42]} Re1+ {[%emt 0:00:10]} 27. Kd2 {[%emt 0:00:29]} R1e2+ {[%emt 0:00:25]} 28. Kd3 {[%emt 0:02:02]} R8e3+ {[%emt 0:00:09]} 29. Kd4 {[%emt 0:00:15]} Rxc2 {[%emt 0:00:23]} 30. Kxe3 {[%emt 0:00:02]} Rxb2 {[%emt 0:00:12]} 31. Kf3 {[%emt 0:03:05]} Kg7 {[%emt 0:00:31]} 32. Rxa7 {[%emt 0:00:36]} h5 {[%emt 0:00:07]} 33. Ra6 {[%emt 0:01:34]} h4 {[%emt 0:02:24]} 34. Kg4 {[%emt 0:00:59]} Rxg2+ {[%emt 0:00:33]} 35. Kxh4 {[%emt 0:00:19]} Rxh2+ {[%emt 0:00:28]} 36. Kg5 {[%emt 0:00:10]} Rg2+ {[%emt 0:01:25]} 37. Kf5 {[%emt 0:00:22]} Rh2 {[%emt 0:01:38]} 38. a4 {[%emt 0:01:07]} Rh5+ {[%emt 0:00:26]} 39. Ke4 {[%emt 0:00:33]} f6 {[%emt 0:00:50]} 40. f5 {[%emt 0:00:30]} Rh4+ {[%emt 0:00:17]} 41. Kd5 {[%emt 0:30:30]} Rf4 {[%emt 0:30:11]} 42. Ra7+ {[%emt 0:00:27]} Kh6 {[%emt 0:00:07]} 43. Ke6 {[%emt 0:00:32]} Kg5 {[%emt 0:00:30]} 44. Rg7+ {[%emt 0:00:00]} Kh6 {[%emt 0:00:00]} 45. Rg6+ {[%emt 0:00:00]} Kh7 {[%emt 0:00:00]} 46. Kxf6 {[%emt 0:00:00]} Rxa4 {[%emt 0:00:00]} 47. Rg7+ {[%emt 0:00:00]} Kh8 {[%emt 0:00:00]} 48. Re7 {[%emt 0:00:00]} Ra6+ {[%emt 0:00:00]} 49. Kf7 {[%emt 0:00:00]} Kh7 {[%emt 0:00:00]} 50. Re6 {[%emt 0:00:44]} Ra5 {[%emt 0:00:00]} 51. f6 {[%emt 0:00:53]} Kh6 {[%emt 0:00:00]} 52. Re8 {[%emt 0:01:26]} Ra7+ {[%emt 0:00:00]} 53. Kg8 {[%emt 0:00:58]} Kg6 {[%emt 0:00:00]} 54. Rf8 {[%emt 0:01:25]} Rb7 {[%emt 0:00:00]} 55. f7 {[%emt 0:00:35]} Ra7 {[%emt 0:00:00]} 56. Kh8 {[%emt 0:00:29]} Rxf7 {[%emt 0:00:00]} 57. Rg8+ {[%emt 0:00:37]} 1/2-1/2

[Event "Slovakian-ch Youth 2022"]
[Site "Lubovna"]
[Date "2022.05.23"]
[Round "4.29"]
[White "Bilik, Matej"]
[Black "Hudak, Michal"]
[Result "0-1"]
[ECO "B41"]
[WhiteElo "1553"]
[BlackElo "1169"]
[Annotator "NA COMBH"]
[PlyCount "65"]
[EventDate "2022.05.22"]
[EventCountry "SVK"]
[SourceTitle "playchess.com"]
[Source "ChessBase"]
[SourceQuality "1"]
[TimeControl "40/5400+30:1800+30"]

1. e4 {[%emt 0:00:07]} c5 {[%emt 0:00:15]} 2. Nf3 {[%emt 0:00:15]} e6 {[%emt 0:00:54]} 3. d4 {[%emt 0:00:12]} cxd4 {[%emt 0:00:28]} 4. Nxd4 {[%emt 0:00:09]} a6 {[%emt 0:00:24]} 5. Qf3 {[%emt 0:01:05]} b5 {[%emt 0:01:30]} 6. a4 {[%emt 0:01:59]} e5 {[%emt 0:05:04]} 7. Nb3 {[%emt 0:02:05]} bxa4 {[%emt 0:03:25]} 8. Rxa4 {[%emt 0:00:16]} Nc6 {[%emt 0:01:11]} 9. Nc3 {[%emt 0:04:57]} Bb4 {[%emt 0:02:18]} 10. Bc4 {[%emt 0:02:19]} Qf6 {[%emt 0:03:57]} 11. Qxf6 {[%emt 0:09:43]} Nxf6 {[%emt 0:01:02]} 12. Bd2 {[%emt 0:02:20]} Bxc3 {[%emt 0:01:31]} 13. Bxc3 {[%emt 0:00:32]} Nxe4 {[%emt 0:04:39]} 14. Bxf7+ {[%emt 0:02:52]} Kxf7 {[%emt 0:02:08]} 15. Rxe4 {[%emt 0:00:09]} d5 {[%emt 0:02:10]} 16. Re2 {[%emt 0:02:59]} Re8 {[%emt 0:06:34]} 17. O-O {[%emt 0:01:45]} a5 {[%emt 0:14:15]} 18. Nc5 {[%emt 0:12:07]} Ra7 {[%emt 0:06:13]} 19. Rfe1 {[%emt 0:04:01]} d4 {[%emt 0:13:52]} 20. Bd2 {[%emt 0:00:53]} Bf5 {[%emt 0:01:20]} 21. Bc1 {[%emt 0:03:07]} Rae7 {[%emt 0:08:25]} 22. Bg5 {[%emt 0:11:11]} Rc7 {[%emt 0:02:47]} 23. f4 {[%emt 0:16:28]} h6 {[%emt 0:09:24]} 24. Bh4 {[%emt 0:01:08]} Bg4 {[%emt 0:01:09]} 25. Rf2 {[%emt 0:01:05]} Kg8 {[%emt 0:03:27]} 26. Ne4 {[%emt 0:04:12]} Kh8 {[%emt 0:03:18]} 27. h3 {[%emt 0:06:56]} Bh5 {[%emt 0:01:15]} 28. fxe5 {[%emt 0:05:53]} Nxe5 {[%emt 0:00:41]} 29. Bg3 {[%emt 0:01:33]} d3 {[%emt 0:00:38]} 30. Nd6 {[%emt 0:02:35]} Nf3+ {[%emt 0:00:14]} 31. Rxf3 {[%emt 0:00:11]} Rxe1+ {[%emt 0:00:01]} 32. Bxe1 {[%emt 0:00:30]} Bxf3 {[%emt 0:00:09]} 33. gxf3 {[%emt 0:00:19]} 0-1

[Event "Slovakian-ch Youth 2022"]
[Site "Lubovna"]
[Date "2022.05.23"]
[Round "4.30"]
[White "Shykhnenko, Hryhorii"]
[Black "Janoska Peter"]
[Result "1/2-1/2"]
[ECO "C00"]
[WhiteElo "1284"]
[BlackElo "1272"]
[Annotator "NA COMBH"]
[PlyCount "41"]
[EventDate "2022.05.22"]
[EventCountry "SVK"]
[SourceTitle "playchess.com"]
[Source "ChessBase"]
[SourceQuality "1"]
[TimeControl "40/5400+30:1800+30"]

1. e4 {[%emt 0:00:06]} c5 {[%emt 0:00:11]} 2. f4 {[%emt 0:00:02]} e6 {[%emt 0:04:08]} 3. Nf3 {[%emt 0:02:24]} d5 {[%emt 0:05:35]} 4. e5 {[%emt 0:01:11]} Nc6 {[%emt 0:03:59]} 5. Bb5 {[%emt 0:00:57]} Bd7 {[%emt 0:00:50]} 6. Bxc6 {[%emt 0:01:07]} Bxc6 {[%emt 0:00:10]} 7. d3 {[%emt 0:00:21]} Be7 {[%emt 0:02:01]} 8. O-O {[%emt 0:02:43]} Nh6 {[%emt 0:02:20]} 9. Nc3 {[%emt 0:05:59]} O-O {[%emt 0:02:59]} 10. h3 {[%emt 0:01:22]} Bh4 {[%emt 0:20:35]} 11. d4 {[%emt 0:12:41]} b6 {[%emt 0:06:44]} 12. Kh2 {[%emt 0:03:08]} Be7 {[%emt 0:10:17]} 13. Bd2 {[%emt 0:08:34]} Nf5 {[%emt 0:06:14]} 14. dxc5 {[%emt 0:01:44]} Bxc5 {[%emt 0:00:37]} 15. Ne2 {[%emt 0:06:26]} Bb5 {[%emt 0:01:55]} 16. g4 {[%emt 0:08:50]} Ne3 {[%emt 0:02:45]} 17. Bxe3 {[%emt 0:00:25]} Bxe3 {[%emt 0:00:13]} 18. Rh1 {[%emt 0:01:13]} Qc7 {[%emt 0:01:57]} 19. Nfd4 {[%emt 0:02:42]} Ba6 {[%emt 0:01:55]} 20. c3 {[%emt 0:02:43]} Qc4 {[%emt 0:02:32]} 21. Qc2 {[%emt 0:05:14]} 1/2-1/2

[Event "Slovakian-ch Youth 2022"]
[Site "Lubovna"]
[Date "2022.05.23"]
[Round "4.31"]
[White "Boros, David"]
[Black "Dvorak, Alfred"]
[Result "0-1"]
[ECO "B34"]
[WhiteElo "1173"]
[BlackElo "1239"]
[Annotator "NA COMBH"]
[PlyCount "58"]
[EventDate "2022.05.22"]
[EventCountry "SVK"]
[SourceTitle "playchess.com"]
[Source "ChessBase"]
[SourceQuality "1"]
[TimeControl "40/5400+30:1800+30"]

1. e4 {[%emt 0:00:48]} c5 {[%emt 0:00:07]} 2. Nf3 {[%emt 0:00:44]} Nc6 {[%emt 0:00:09]} 3. d4 {[%emt 0:00:49]} cxd4 {[%emt 0:00:11]} 4. Nxd4 {[%emt 0:00:10]} g6 {[%emt 0:00:12]} 5. Nc3 {[%emt 0:05:54]} Bg7 {[%emt 0:01:39]} 6. Be3 {[%emt 0:02:21]} a6 {[%emt 0:02:28]} 7. Bc4 {[%emt 0:03:30]} e6 {[%emt 0:02:00]} 8. Nxc6 {[%emt 0:01:53]} bxc6 {[%emt 0:00:41]} 9. Bd4 {[%emt 0:01:55]} Nf6 {[%emt 0:02:50]} 10. O-O {[%emt 0:01:45]} d5 {[%emt 0:01:41]} 11. exd5 {[%emt 0:02:56]} exd5 {[%emt 0:03:05]} 12. Bb3 {[%emt 0:04:58]} O-O {[%emt 0:00:37]} 13. f3 {[%emt 0:02:02]} Qc7 {[%emt 0:02:37]} 14. Na4 {[%emt 0:05:32]} Re8 {[%emt 0:07:08]} 15. Re1 {[%emt 0:02:50]} Rxe1+ {[%emt 0:01:13]} 16. Qxe1 {[%emt 0:00:25]} Bf5 {[%emt 0:01:16]} 17. Qc3 {[%emt 0:03:25]} Qd6 {[%emt 0:04:54]} 18. Be5 {[%emt 0:02:21]} Qe7 {[%emt 0:02:18]} 19. Qxc6 {[%emt 0:04:03]} Rc8 {[%emt 0:05:55]} 20. Bxf6 {[%emt 0:03:21]} Qxf6 {[%emt 0:02:01]} 21. Qxf6 {[%emt 0:02:32]} Bxf6 {[%emt 0:00:10]} 22. Nb6 {[%emt 0:02:34]} Bd4+ {[%emt 0:00:54]} 23. Kf1 {[%emt 0:00:52]} Bxb6 {[%emt 0:00:17]} 24. Bxd5 {[%emt 0:00:53]} Rxc2 {[%emt 0:01:08]} 25. g4 {[%emt 0:00:19]} Bd3+ {[%emt 0:00:34]} 26. Ke1 {[%emt 0:00:12]} Rxb2 {[%emt 0:00:21]} 27. a4 {[%emt 0:00:10]} Rxh2 {[%emt 0:00:24]} 28. a5 {[%emt 0:00:08]} Be3 {[%emt 0:02:14]} 29. Ra2 {[%emt 0:00:14]} Rh1# {[%emt 0:00:13]} 0-1

[Event "Slovakian-ch Youth 2022"]
[Site "Lubovna"]
[Date "2022.05.23"]
[Round "4.32"]
[White "Gobl, Fabian"]
[Black "Ziman, Damian"]
[Result "1/2-1/2"]
[ECO "D00"]
[WhiteElo "1017"]
[BlackElo "1293"]
[Annotator "NA COMBH"]
[PlyCount "89"]
[EventDate "2022.05.22"]
[EventCountry "SVK"]
[SourceTitle "playchess.com"]
[Source "ChessBase"]
[SourceQuality "1"]
[TimeControl "40/5400+30:1800+30"]

1. d4 {[%emt 0:00:07]} d5 {[%emt 0:00:15]} 2. Bf4 {[%emt 0:00:20]} Nf6 {[%emt 0:00:37]} 3. Nc3 {[%emt 0:00:27]} Bf5 {[%emt 0:01:12]} 4. e3 {[%emt 0:00:24]} e6 {[%emt 0:01:05]} 5. Nge2 {[%emt 0:00:43]} Be7 {[%emt 0:02:23]} 6. h3 {[%emt 0:01:05]} O-O {[%emt 0:02:37]} 7. Ng3 {[%emt 0:01:42]} Bg6 {[%emt 0:02:07]} 8. Bd3 {[%emt 0:00:43]} Bxd3 {[%emt 0:02:27]} 9. Qxd3 {[%emt 0:00:03]} c6 {[%emt 0:00:42]} 10. O-O {[%emt 0:01:42]} Nbd7 {[%emt 0:01:26]} 11. Rfe1 {[%emt 0:02:42]} Qb6 {[%emt 0:04:54]} 12. b3 {[%emt 0:00:53]} Qa5 {[%emt 0:03:17]} 13. e4 {[%emt 0:00:32]} Bb4 {[%emt 0:02:29]} 14. Bd2 {[%emt 0:00:31]} dxe4 {[%emt 0:13:02]} 15. Ngxe4 {[%emt 0:00:26]} Nd5 {[%emt 0:05:35]} 16. Nxd5 {[%emt 0:00:51]} cxd5 {[%emt 0:02:21]} 17. Bxb4 {[%emt 0:00:22]} Qxb4 {[%emt 0:01:06]} 18. Ng5 {[%emt 0:00:26]} Nf6 {[%emt 0:00:33]} 19. c3 {[%emt 0:00:48]} Qd6 {[%emt 0:02:05]} 20. Re3 {[%emt 0:00:40]} h6 {[%emt 0:01:35]} 21. Nf3 {[%emt 0:01:38]} Rac8 {[%emt 0:03:01]} 22. Ne5 {[%emt 0:00:37]} Ne4 {[%emt 0:04:58]} 23. Rc1 {[%emt 0:00:49]} Rc7 {[%emt 0:10:21]} 24. c4 {[%emt 0:08:31]} b6 {[%emt 0:01:23]} 25. Rc2 {[%emt 0:00:59]} Rfc8 {[%emt 0:02:05]} 26. Ree2 {[%emt 0:01:02]} Nf6 {[%emt 0:02:55]} 27. cxd5 {[%emt 0:06:23]} Qxd5 {[%emt 0:03:26]} 28. Nf3 {[%emt 0:02:32]} Qd6 {[%emt 0:04:12]} 29. Ne1 {[%emt 0:01:16]} Rd8 {[%emt 0:01:35]} 30. Rxc7 {[%emt 0:00:39]} Qxc7 {[%emt 0:00:18]} 31. Rd2 {[%emt 0:01:03]} e5 {[%emt 0:02:48]} 32. Rc2 {[%emt 0:05:18]} Qe7 {[%emt 0:01:58]} 33. Qe2 {[%emt 0:00:52]} Rxd4 {[%emt 0:01:10]} 34. Rc8+ {[%emt 0:00:18]} Kh7 {[%emt 0:00:32]} 35. Qc2+ {[%emt 0:00:57]} g6 {[%emt 0:00:43]} 36. Nf3 {[%emt 0:00:27]} Rd5 {[%emt 0:01:43]} 37. Rc7 {[%emt 0:00:58]} Rd7 {[%emt 0:02:40]} 38. Rc6 {[%emt 0:00:39]} Kg7 {[%emt 0:01:32]} 39. Qc4 {[%emt 0:00:56]} Rd1+ {[%emt 0:03:41]} 40. Kh2 {[%emt 0:00:14]} e4 {[%emt 0:01:32]} 41. Rc7 {[%emt 0:30:39]} Rd7 {[%emt 0:35:24]} 42. Rxd7 {[%emt 0:00:46]} Qxd7 {[%emt 0:00:00]} 43. Ne5 {[%emt 0:00:00]} Qe7 {[%emt 0:00:00]} 44. Nc6 {[%emt 0:00:00]} Qd6+ {[%emt 0:00:00]} 45. Kg1 {[%emt 0:00:00]} 1/2-1/2

[Event "Slovakian-ch Youth 2022"]
[Site "Lubovna"]
[Date "2022.05.23"]
[Round "4.33"]
[White "Papay Aurel"]
[Black "Brnusak, Simon"]
[Result "1/2-1/2"]
[ECO "B47"]
[WhiteElo "1000"]
[BlackElo "1090"]
[Annotator "NA COMBH"]
[PlyCount "43"]
[EventDate "2022.05.22"]
[EventCountry "SVK"]
[SourceTitle "playchess.com"]
[Source "ChessBase"]
[SourceQuality "1"]
[TimeControl "40/5400+30:1800+30"]

1. e4 {[%emt 0:00:21]} c5 {[%emt 0:00:23]} 2. Nf3 {[%emt 0:00:08]} e6 {[%emt 0:00:57]} 3. Nc3 {[%emt 0:01:36]} Nc6 {[%emt 0:01:47]} 4. d4 {[%emt 0:00:40]} cxd4 {[%emt 0:01:30]} 5. Nxd4 {[%emt 0:00:07]} Qc7 {[%emt 0:01:32]} 6. Bc4 {[%emt 0:03:10]} Nf6 {[%emt 0:07:41]} 7. Bg5 {[%emt 0:03:47]} Be7 {[%emt 0:01:13]} 8. Qd2 {[%emt 0:07:44]} O-O {[%emt 0:01:23]} 9. O-O-O {[%emt 0:01:59]} a6 {[%emt 0:01:20]} 10. Rhe1 {[%emt 0:02:45]} e5 {[%emt 0:02:49]} 11. Nxc6 {[%emt 0:02:21]} bxc6 {[%emt 0:01:41]} 12. Re3 {[%emt 0:00:49]} Re8 {[%emt 0:01:37]} 13. Rg3 {[%emt 0:00:43]} Nh5 {[%emt 0:05:27]} 14. Rf3 {[%emt 0:01:13]} Bf6 {[%emt 0:01:49]} 15. Bxf6 {[%emt 0:01:15]} Nxf6 {[%emt 0:06:52]} 16. Qg5 {[%emt 0:01:42]} h6 {[%emt 0:12:09]} 17. Qh4 {[%emt 0:06:03]} d5 {[%emt 0:00:30]} 18. exd5 {[%emt 0:00:30]} e4 {[%emt 0:00:30]} 19. Rg3 {[%emt 0:01:52]} Kh8 {[%emt 0:07:11]} 20. d6 {[%emt 0:03:48]} Qb7 {[%emt 0:02:13]} 21. Re3 {[%emt 0:02:51]} Rb8 {[%emt 0:03:16]} 22. Bb3 {[%emt 0:01:45]} 1/2-1/2

[Event "Slovakian-ch Youth 2022"]
[Site "Lubovna"]
[Date "2022.05.23"]
[Round "4.34"]
[White "Krajci Hugo"]
[Black "Drabek Matej"]
[Result "0-1"]
[ECO "C64"]
[WhiteElo "1178"]
[BlackElo "1000"]
[Annotator "NA COMBH"]
[PlyCount "62"]
[EventDate "2022.05.22"]
[EventCountry "SVK"]
[SourceTitle "playchess.com"]
[Source "ChessBase"]
[SourceQuality "1"]
[TimeControl "40/5400+30:1800+30"]

1. e4 {[%emt 0:00:06]} e5 {[%emt 0:00:12]} 2. Nf3 {[%emt 0:00:03]} Nc6 {[%emt 0:00:14]} 3. Bb5 {[%emt 0:00:13]} Bc5 {[%emt 0:00:30]} 4. Bxc6 {[%emt 0:00:19]} bxc6 {[%emt 0:00:22]} 5. Nxe5 {[%emt 0:00:22]} Qe7 {[%emt 0:00:44]} 6. Qh5 {[%emt 0:01:32]} Nf6 {[%emt 0:00:40]} 7. Qf5 {[%emt 0:01:03]} d6 {[%emt 0:00:29]} 8. Nxc6 {[%emt 0:01:00]} Qxe4+ {[%emt 0:03:21]} 9. Qxe4+ {[%emt 0:00:26]} Nxe4 {[%emt 0:00:13]} 10. O-O {[%emt 0:00:13]} Ba6 {[%emt 0:00:44]} 11. Re1 {[%emt 0:00:25]} Bxf2+ {[%emt 0:00:22]} 12. Kh1 {[%emt 0:00:00]} Bxe1 {[%emt 0:00:00]} 13. Nc3 {[%emt 0:00:19]} Nf2+ {[%emt 0:00:00]} 14. Kg1 {[%emt 0:00:18]} O-O {[%emt 0:00:00]} 15. d3 {[%emt 0:00:56]} Ng4 {[%emt 0:00:59]} 16. Bg5 {[%emt 0:01:04]} h6 {[%emt 0:00:36]} 17. Bxh6 {[%emt 0:03:42]} Nxh6 {[%emt 0:01:21]} 18. Rxe1 {[%emt 0:00:09]} Rfe8 {[%emt 0:01:17]} 19. Rxe8+ {[%emt 0:00:49]} Rxe8 {[%emt 0:00:14]} 20. Nxa7 {[%emt 0:00:07]} Ng4 {[%emt 0:00:25]} 21. Ne4 {[%emt 0:01:47]} Bb7 {[%emt 0:00:29]} 22. h3 {[%emt 0:01:05]} Bxe4 {[%emt 0:00:36]} 23. dxe4 {[%emt 0:00:15]} Ne3 {[%emt 0:00:38]} 24. c3 {[%emt 0:01:31]} Rxe4 {[%emt 0:00:19]} 25. Nb5 {[%emt 0:00:09]} Nd5 {[%emt 0:00:48]} 26. b3 {[%emt 0:01:42]} Re1+ {[%emt 0:00:34]} 27. Kh2 {[%emt 0:00:17]} Re2 {[%emt 0:02:34]} 28. Nd4 {[%emt 0:00:31]} Rxa2 {[%emt 0:00:31]} 29. c4 {[%emt 0:00:34]} Ne3 {[%emt 0:00:47]} 30. Kg3 {[%emt 0:00:34]} c5 {[%emt 0:00:26]} 31. Kf3 {[%emt 0:00:09]} Nd1 {[%emt 0:00:30]} 0-1

[Event "Slovakian-ch Youth 2022"]
[Site "Lubovna"]
[Date "2022.05.23"]
[Round "4.35"]
[White "Diachenko Mykhailo"]
[Black "Kriska Alexander"]
[Result "1-0"]
[ECO "C26"]
[WhiteElo "1000"]
[BlackElo "1046"]
[Annotator "NA COMBH"]
[PlyCount "38"]
[EventDate "2022.05.22"]
[EventCountry "SVK"]
[SourceTitle "playchess.com"]
[Source "ChessBase"]
[SourceQuality "1"]
[TimeControl "40/5400+30:1800+30"]

1. g3 {[%emt 0:00:03]} e5 {[%emt 0:00:38]} 2. Bg2 {[%emt 0:00:04]} Nf6 {[%emt 0:00:58]} 3. e4 {[%emt 0:00:17]} Nc6 {[%emt 0:00:55]} 4. Nc3 {[%emt 0:00:25]} Bb4 {[%emt 0:01:11]} 5. Nge2 {[%emt 0:00:25]} d6 {[%emt 0:03:56]} 6. O-O {[%emt 0:00:39]} Be6 {[%emt 0:00:58]} 7. Re1 {[%emt 0:00:50]} Bg4 {[%emt 0:01:16]} 8. a3 {[%emt 0:01:16]} Bxc3 {[%emt 0:01:14]} 9. dxc3 {[%emt 0:00:18]} O-O {[%emt 0:00:31]} 10. Bg5 {[%emt 0:00:05]} Re8 {[%emt 0:03:07]} 11. b4 {[%emt 0:00:46]} b5 {[%emt 0:02:42]} 12. a4 {[%emt 0:01:15]} Rb8 {[%emt 0:02:23]} 13. Bxf6 {[%emt 0:01:06]} Qxf6 {[%emt 0:04:27]} 14. Qd5 {[%emt 0:00:30]} Bf5 {[%emt 0:00:30]} 15. axb5 {[%emt 0:00:25]} Bd7 {[%emt 0:00:31]} 16. Qb3 {[%emt 0:00:34]} Ne7 {[%emt 0:04:44]} 17. Nd4 {[%emt 0:01:50]} Rb7 {[%emt 0:00:01]} 18. c4 {[%emt 0:00:45]} Ra8 {[%emt 0:05:56]} 19. Qf3 {[%emt 0:01:25]} Ng6 {[%emt 0:09:46]} 1-0

[Event "Slovakian-ch Youth 2022"]
[Site "Lubovna"]
[Date "2022.05.23"]
[Round "4.36"]
[White "Stavac Teodor"]
[Black "Slivka Martin"]
[Result "0-1"]
[ECO "C62"]
[WhiteElo "1000"]
[BlackElo "1000"]
[Annotator "NA COMBH"]
[PlyCount "72"]
[EventDate "2022.05.22"]
[EventCountry "SVK"]
[SourceTitle "playchess.com"]
[Source "ChessBase"]
[SourceQuality "1"]
[TimeControl "40/5400+30:1800+30"]

1. e4 {[%emt 0:00:13]} e5 {[%emt 0:00:12]} 2. Nf3 {[%emt 0:00:12]} Nc6 {[%emt 0:00:39]} 3. Bb5 {[%emt 0:00:15]} d6 {[%emt 0:00:44]} 4. d4 {[%emt 0:00:25]} Bd7 {[%emt 0:02:07]} 5. Nc3 {[%emt 0:00:54]} Be7 {[%emt 0:01:51]} 6. Be3 {[%emt 0:00:19]} Nf6 {[%emt 0:01:46]} 7. d5 {[%emt 0:00:30]} Nb4 {[%emt 0:04:03]} 8. a3 {[%emt 0:01:48]} Bxb5 {[%emt 0:01:24]} 9. Nxb5 {[%emt 0:00:12]} Na6 {[%emt 0:00:59]} 10. O-O {[%emt 0:00:28]} Nxe4 {[%emt 0:01:13]} 11. Nc3 {[%emt 0:01:53]} Nxc3 {[%emt 0:03:06]} 12. bxc3 {[%emt 0:05:59]} Nc5 {[%emt 0:00:50]} 13. Bxc5 {[%emt 0:00:30]} dxc5 {[%emt 0:00:30]} 14. Nxe5 {[%emt 0:00:48]} O-O {[%emt 0:01:37]} 15. c4 {[%emt 0:00:30]} Bd6 {[%emt 0:01:21]} 16. Re1 {[%emt 0:01:01]} Re8 {[%emt 0:00:50]} 17. Ng4 {[%emt 0:03:20]} Qd7 {[%emt 0:01:17]} 18. Rxe8+ {[%emt 0:01:31]} Rxe8 {[%emt 0:00:14]} 19. Rb1 {[%emt 0:00:21]} Bf8 {[%emt 0:09:17]} 20. Rxb7 {[%emt 0:01:30]} Qxg4 {[%emt 0:03:19]} 21. Rb1 {[%emt 0:02:35]} Qxd1+ {[%emt 0:00:33]} 22. Rxd1 {[%emt 0:00:11]} Re4 {[%emt 0:01:25]} 23. Rc1 {[%emt 0:01:15]} Rxc4 {[%emt 0:00:21]} 24. f3 {[%emt 0:00:42]} Bd6 {[%emt 0:01:46]} 25. g4 {[%emt 0:00:42]} f6 {[%emt 0:00:42]} 26. c3 {[%emt 0:01:43]} Bf4 {[%emt 0:01:10]} 27. Kf1 {[%emt 0:00:40]} Bxc1 {[%emt 0:00:20]} 28. Ke2 {[%emt 0:00:42]} Rxc3 {[%emt 0:00:48]} 29. a4 {[%emt 0:00:24]} Bg5 {[%emt 0:01:19]} 30. a5 {[%emt 0:02:43]} Re3+ {[%emt 0:00:51]} 31. Kf2 {[%emt 0:02:25]} c4 {[%emt 0:01:04]} 32. Kg3 {[%emt 0:00:38]} c3 {[%emt 0:00:15]} 33. h4 {[%emt 0:00:12]} Bxh4+ {[%emt 0:00:38]} 34. Kxh4 {[%emt 0:00:48]} c2 {[%emt 0:00:13]} 35. f4 {[%emt 0:03:46]} c1=Q {[%emt 0:00:43]} 36. f5 {[%emt 0:00:50]} Qh1# {[%emt 0:00:21]} 0-1